[Event "RUS-ch Rapid 2021"]
[Site "Sochi"]
[Date "2021.10.12"]
[Round "4.14"]
[White "Bocharov, Dmitry"]
[Black "Obgolts, Erik"]
[Result "1-0"]
[ECO "E60"]
[WhiteElo "2517"]
[BlackElo "2430"]
[Annotator "ChessBase"]
[PlyCount "153"]
[EventDate "2021.10.12"]
[EventType "swiss"]
[EventCountry "RUS"]
[SourceTitle "playchess.com"]
[Source "ChessBase"]
[SourceQuality "1"]
[TimeControl "900+10"]

1. Nf3 {[%emt 0:00:09]} Nf6 {[%emt 0:00:00]} 2. d4 {[%emt 0:00:00]} g6 {
[%emt 0:00:05]} 3. c4 {[%emt 0:00:08]} Bg7 {[%emt 0:00:04]} 4. g3 {[%emt 0:00:
00]} O-O {[%emt 0:00:00]} 5. Bg2 {[%emt 0:00:00]} d6 {[%emt 0:00:08]} 6. O-O {
[%emt 0:00:01]} c6 {[%emt 0:00:07]} 7. b3 {[%emt 0:00:01]} a5 {[%emt 0:00:32]}
8. Nc3 {[%emt 0:00:05]} Bf5 {[%emt 0:00:00]} 9. Nh4 {[%emt 0:02:38]} Bd7 {
[%emt 0:02:22]} 10. e4 {[%emt 0:00:39]} e5 {[%emt 0:00:36]} 11. Nf3 {[%emt 0:
00:06]} Bg4 {[%emt 0:00:27]} 12. Be3 {[%emt 0:00:38]} Qe7 {[%emt 0:00:35]} 13.
h3 {[%emt 0:01:46]} Bxf3 {[%emt 0:01:39]} 14. Bxf3 {[%emt 0:00:04]} exd4 {
[%emt 0:00:28]} 15. Bxd4 {[%emt 0:00:02]} Ne8 {[%emt 0:00:48]} 16. Bg2 {
[%emt 0:00:49]} Nd7 {[%emt 0:01:48]} 17. f4 {[%emt 0:00:53]} Rd8 {[%emt 0:00:
41]} 18. Rc1 {[%emt 0:00:32]} Nc5 {[%emt 0:01:17]} 19. Qd2 {[%emt 0:01:44]}
Bxd4+ {[%emt 0:00:47]} 20. Qxd4 {[%emt 0:00:03]} Ng7 {[%emt 0:00:12]} 21. Kh2 {
[%emt 0:00:23]} Rfe8 {[%emt 0:01:35]} 22. Rce1 {[%emt 0:01:47]} Nge6 {[%emt 0:
01:06]} 23. Qd2 {[%emt 0:00:13]} Qf6 {[%emt 0:00:36]} 24. Re3 {[%emt 0:00:42]}
Qd4 {[%emt 0:00:16]} 25. Qe2 {[%emt 0:00:41]} Ng7 {[%emt 0:00:02]} 26. Rd1 {
[%emt 0:01:02]} Qf6 {[%emt 0:00:00]} 27. Qd2 {[%emt 0:00:34]} Qe7 {[%emt 0:00:
45]} 28. Rde1 {[%emt 0:00:05]} Qf6 {[%emt 0:00:18]} 29. Ne2 {[%emt 0:00:13]} h5
{[%emt 0:00:58]} 30. h4 {[%emt 0:00:41]} d5 {[%emt 0:01:26]} 31. e5 {[%emt 0:
01:50]} Qe7 {[%emt 0:00:00]} 32. cxd5 {[%emt 0:00:06]} cxd5 {[%emt 0:00:04]}
33. Nd4 {[%emt 0:00:44]} a4 {[%emt 0:00:16]} 34. bxa4 {[%emt 0:01:04]} Nce6 {
[%emt 0:00:07]} 35. Rd3 {[%emt 0:00:07]} Nc5 {[%emt 0:00:30]} 36. Rc3 {[%emt 0:
00:22]} Nxa4 {[%emt 0:00:19]} 37. Rc2 {[%emt 0:00:08]} Nc5 {[%emt 0:00:00]} 38.
Qb4 {[%emt 0:00:11]} Nce6 {[%emt 0:00:14]} 39. Qxe7 {[%emt 0:00:10]} Rxe7 {
[%emt 0:00:05]} 40. Nb5 {[%emt 0:00:05]} Nf5 {[%emt 0:00:15]} 41. Rec1 {
[%emt 0:00:17]} d4 {[%emt 0:00:15]} 42. Rd2 {[%emt 0:00:09]} d3 {[%emt 0:00:14]
} 43. Be4 {[%emt 0:00:08]} Ned4 {[%emt 0:00:13]} 44. Rxd3 {[%emt 0:00:12]} Red7
{[%emt 0:00:00]} 45. Rcd1 {[%emt 0:00:02]} Nf3+ {[%emt 0:00:16]} 46. Kh3 {
[%emt 0:00:12]} Rxd3 {[%emt 0:00:13]} 47. Rxd3 {[%emt 0:00:04]} Rxd3 {[%emt 0:
00:06]} 48. Bxd3 {[%emt 0:00:01]} N5d4 {[%emt 0:00:13]} 49. Nxd4 {[%emt 0:00:
07]} Nxd4 {[%emt 0:00:00]} 50. Kg2 {[%emt 0:00:03]} Kf8 {[%emt 0:00:04]} 51.
Kf2 {[%emt 0:00:04]} Ke7 {[%emt 0:00:00]} 52. Ke3 {[%emt 0:00:00]} Ne6 {
[%emt 0:00:06]} 53. Be4 {[%emt 0:00:33]} b6 {[%emt 0:00:00]} 54. Kd3 {[%emt 0:
00:01]} Nc7 {[%emt 0:00:23]} 55. Kc4 {[%emt 0:00:21]} Ke6 {[%emt 0:00:07]} 56.
a4 {[%emt 0:00:09]} Ke7 {[%emt 0:00:04]} 57. f5 {[%emt 0:00:05]} gxf5 {[%emt 0:
00:08]} 58. Bxf5 {[%emt 0:00:01]} f6 {[%emt 0:00:15]} 59. Bg6 {[%emt 0:00:16]}
fxe5 {[%emt 0:00:01]} 60. Bxh5 {[%emt 0:00:06]} Kf6 {[%emt 0:00:26]} 61. Bg4 {
[%emt 0:00:06]} Kg6 {[%emt 0:00:25]} 62. Kd3 {[%emt 0:00:20]} Na6 {[%emt 0:00:
04]} 63. Bd1 {[%emt 0:00:14]} Kf5 {[%emt 0:00:04]} 64. Ke3 {[%emt 0:00:05]} e4
{[%emt 0:00:26]} 65. g4+ {[%emt 0:00:23]} Ke5 {[%emt 0:00:00]} 66. Bb3 {
[%emt 0:00:21]} Nc7 {[%emt 0:00:17]} 67. h5 {[%emt 0:00:13]} Na6 {[%emt 0:00:
17]} 68. Bc2 {[%emt 0:00:17]} Nc5 {[%emt 0:00:08]} 69. g5 {[%emt 0:00:02]} Kf5
{[%emt 0:00:04]} 70. g6 {[%emt 0:00:03]} Kf6 {[%emt 0:00:02]} 71. Kf4 {[%emt 0:
00:03]} Kg7 {[%emt 0:00:09]} 72. Ke3 {[%emt 0:00:25]} Kh6 {[%emt 0:00:07]} 73.
Bd1 {[%emt 0:00:06]} Kg7 {[%emt 0:00:27]} 74. Kd4 {[%emt 0:00:04]} Kh6 {
[%emt 0:00:03]} 75. a5 {[%emt 0:00:22]} Ne6+ {[%emt 0:00:18]} 76. Ke5 {[%emt 0:
00:02]} bxa5 {[%emt 0:00:02]} 77. Kxe6 {[%emt 0:00:01]} 1-0

[Event "RUS-ch Rapid 2021"]
[Site "Sochi"]
[Date "2021.10.12"]
[Round "4.15"]
[White "Pridorozhni, Aleksei"]
[Black "Dudin, Gleb"]
[Result "1-0"]
[ECO "B11"]
[WhiteElo "2564"]
[BlackElo "2438"]
[Annotator "ChessBase"]
[PlyCount "85"]
[EventDate "2021.10.12"]
[EventType "swiss"]
[EventCountry "RUS"]
[SourceTitle "playchess.com"]
[Source "ChessBase"]
[SourceQuality "1"]
[TimeControl "900+10"]

1. e4 {[%emt 0:00:04]} c6 {[%emt 0:00:07]} 2. Nc3 {[%emt 0:00:00]} d5 {[%emt 0:
00:01]} 3. Nf3 {[%emt 0:00:00]} dxe4 {[%emt 0:00:12]} 4. Nxe4 {[%emt 0:00:02]}
Nf6 {[%emt 0:00:04]} 5. Qe2 {[%emt 0:00:31]} Nxe4 {[%emt 0:00:42]} 6. Qxe4 {
[%emt 0:00:00]} Be6 {[%emt 0:00:02]} 7. Qe3 {[%emt 0:00:52]} Bf5 {[%emt 0:03:
57]} 8. c4 {[%emt 0:04:33]} e6 {[%emt 0:00:11]} 9. Be2 {[%emt 0:00:01]} c5 {
[%emt 0:01:56]} 10. Ne5 {[%emt 0:00:22]} Bd6 {[%emt 0:00:45]} 11. g4 {[%emt 0:
01:04]} Bg6 {[%emt 0:00:58]} 12. b3 {[%emt 0:00:49]} Qf6 {[%emt 0:02:01]} 13.
Bb2 {[%emt 0:00:18]} Nd7 {[%emt 0:01:35]} 14. g5 {[%emt 0:00:16]} Qf5 {[%emt 0:
01:03]} 15. Bd3 {[%emt 0:00:47]} Bxe5 {[%emt 0:00:04]} 16. Bxf5 {[%emt 0:00:00]
} Bxb2 {[%emt 0:00:02]} 17. Bxg6 {[%emt 0:00:06]} hxg6 {[%emt 0:01:22]} 18. Rb1
{[%emt 0:00:04]} Bd4 {[%emt 0:00:00]} 19. Qe4 {[%emt 0:00:01]} O-O-O {[%emt 0:
00:43]} 20. b4 {[%emt 0:00:12]} Rh3 {[%emt 0:00:07]} 21. Rb3 {[%emt 0:00:09]}
Rhh8 {[%emt 0:02:38]} 22. h4 {[%emt 0:00:30]} e5 {[%emt 0:00:06]} 23. b5 {
[%emt 0:00:23]} Nf8 {[%emt 0:00:08]} 24. a4 {[%emt 0:00:15]} Ne6 {[%emt 0:00:
11]} 25. a5 {[%emt 0:00:07]} Rd7 {[%emt 0:00:14]} 26. a6 {[%emt 0:00:00]} Kb8 {
[%emt 0:00:11]} 27. axb7 {[%emt 0:00:11]} Rxb7 {[%emt 0:00:05]} 28. Kf1 {
[%emt 0:00:42]} Nf4 {[%emt 0:00:12]} 29. Rf3 {[%emt 0:00:04]} Rd8 {[%emt 0:00:
12]} 30. Rxf4 {[%emt 0:00:03]} exf4 {[%emt 0:00:02]} 31. Qxf4+ {[%emt 0:00:11]}
Kc8 {[%emt 0:00:08]} 32. Qe4 {[%emt 0:00:09]} Kb8 {[%emt 0:00:11]} 33. Kg2 {
[%emt 0:00:04]} Rb6 {[%emt 0:00:20]} 34. Re1 {[%emt 0:00:09]} Rbd6 {[%emt 0:00:
07]} 35. Qf4 {[%emt 0:00:05]} R8d7 {[%emt 0:00:10]} 36. Re8+ {[%emt 0:00:08]}
Kc7 {[%emt 0:00:03]} 37. Rf8 {[%emt 0:00:21]} f6 {[%emt 0:00:06]} 38. Re8 {
[%emt 0:00:21]} Be5 {[%emt 0:00:07]} 39. Qf3 {[%emt 0:00:13]} Rd8 {[%emt 0:00:
24]} 40. Rxd8 {[%emt 0:00:11]} Rxd8 {[%emt 0:00:06]} 41. Qc6+ {[%emt 0:00:05]}
Kb8 {[%emt 0:00:00]} 42. Qxc5 {[%emt 0:00:00]} Rxd2 {[%emt 0:00:05]} 43. Qf8+ {
[%emt 0:00:00]} 1-0

[Event "RUS-ch Rapid 2021"]
[Site "Sochi"]
[Date "2021.10.12"]
[Round "4.16"]
[White "Ekdyshman, Mikhail"]
[Black "Triapishko, Alexandr"]
[Result "0-1"]
[ECO "E38"]
[WhiteElo "2315"]
[BlackElo "2506"]
[Annotator "ChessBase"]
[PlyCount "106"]
[EventDate "2021.10.12"]
[EventType "swiss"]
[EventCountry "RUS"]
[SourceTitle "playchess.com"]
[Source "ChessBase"]
[SourceQuality "1"]
[TimeControl "900+10"]

1. d4 {[%emt 0:00:00]} Nf6 {[%emt 0:00:35]} 2. c4 {[%emt 0:00:06]} e6 {[%emt 0:
00:07]} 3. Nc3 {[%emt 0:00:00]} Bb4 {[%emt 0:00:00]} 4. Qc2 {[%emt 0:00:03]} d5
{[%emt 0:00:00]} 5. Nf3 {[%emt 0:00:00]} c5 {[%emt 0:01:02]} 6. e3 {[%emt 0:00:
15]} O-O {[%emt 0:01:46]} 7. a3 {[%emt 0:00:10]} Bxc3+ {[%emt 0:00:00]} 8. Qxc3
{[%emt 0:00:20]} cxd4 {[%emt 0:02:07]} 9. exd4 {[%emt 0:00:04]} dxc4 {[%emt 0:
00:30]} 10. Bxc4 {[%emt 0:00:01]} b6 {[%emt 0:00:24]} 11. Bg5 {[%emt 0:00:28]}
Ba6 {[%emt 0:00:28]} 12. O-O {[%emt 0:03:50]} Ne4 {[%emt 0:03:39]} 13. Bxd8 {
[%emt 0:00:34]} Nxc3 {[%emt 0:00:00]} 14. Bxa6 {[%emt 0:00:11]} Nxa6 {[%emt 0:
00:03]} 15. bxc3 {[%emt 0:00:40]} Rfxd8 {[%emt 0:00:08]} 16. c4 {[%emt 0:00:18]
} Rac8 {[%emt 0:00:21]} 17. Rac1 {[%emt 0:00:00]} f6 {[%emt 0:00:54]} 18. Rfd1
{[%emt 0:00:20]} Kf7 {[%emt 0:00:10]} 19. Kf1 {[%emt 0:00:10]} Nb8 {[%emt 0:01:
27]} 20. Ke2 {[%emt 0:02:26]} Rd7 {[%emt 0:01:27]} 21. Rc3 {[%emt 0:02:56]} Nc6
{[%emt 0:00:51]} 22. c5 {[%emt 0:02:26]} Ne7 {[%emt 0:00:28]} 23. Rdc1 {
[%emt 0:00:16]} Nd5 {[%emt 0:00:00]} 24. Rc4 {[%emt 0:01:10]} Nf4+ {[%emt 0:00:
26]} 25. Kf1 {[%emt 0:00:28]} g5 {[%emt 0:01:23]} 26. g3 {[%emt 0:00:00]} Nd5 {
[%emt 0:00:18]} 27. h3 {[%emt 0:01:42]} Kg6 {[%emt 0:00:17]} 28. a4 {[%emt 0:
00:03]} h5 {[%emt 0:00:00]} 29. Ke2 {[%emt 0:00:05]} Ne7 {[%emt 0:00:00]} 30.
cxb6 {[%emt 0:00:13]} Rxc4 {[%emt 0:00:44]} 31. Rxc4 {[%emt 0:00:11]} axb6 {
[%emt 0:00:00]} 32. Rb4 {[%emt 0:00:07]} Nd5 {[%emt 0:00:01]} 33. Rc4 {[%emt 0:
00:02]} Kf5 {[%emt 0:00:25]} 34. Rc6 {[%emt 0:00:18]} Ra7 {[%emt 0:00:05]} 35.
Nd2 {[%emt 0:00:48]} Rxa4 {[%emt 0:00:00]} 36. Nc4 {[%emt 0:00:06]} Ra2+ {
[%emt 0:00:54]} 37. Kf3 {[%emt 0:00:00]} g4+ {[%emt 0:00:05]} 38. Kg2 {[%emt 0:
00:00]} Ra4 {[%emt 0:00:00]} 39. hxg4+ {[%emt 0:00:33]} hxg4 {[%emt 0:00:12]}
40. Nxb6 {[%emt 0:00:12]} Rxd4 {[%emt 0:00:03]} 41. Nxd5 {[%emt 0:00:00]} exd5
{[%emt 0:00:00]} 42. Rc8 {[%emt 0:00:04]} Rc4 {[%emt 0:00:39]} 43. Rd8 {
[%emt 0:00:21]} Ke4 {[%emt 0:00:07]} 44. Re8+ {[%emt 0:00:11]} Kd4 {[%emt 0:00:
10]} 45. Re6 {[%emt 0:00:19]} f5 {[%emt 0:00:02]} 46. Re8 {[%emt 0:00:05]} Kc3
{[%emt 0:00:13]} 47. Re3+ {[%emt 0:00:16]} Kc2 {[%emt 0:00:07]} 48. Re2+ {
[%emt 0:00:03]} Kb3 {[%emt 0:00:20]} 49. Re5 {[%emt 0:00:16]} d4 {[%emt 0:00:
04]} 50. Rxf5 {[%emt 0:00:05]} d3 {[%emt 0:00:03]} 51. Rd5 {[%emt 0:00:16]} Kc3
{[%emt 0:00:07]} 52. Ra5 {[%emt 0:00:11]} d2 {[%emt 0:00:04]} 53. Ra1 {[%emt 0:
00:00]} Kb2 {[%emt 0:00:08]} 0-1

[Event "RUS-ch Rapid 2021"]
[Site "Sochi"]
[Date "2021.10.12"]
[Round "4.17"]
[White "Savitskiy, Sergey"]
[Black "Timofeev, Artyom"]
[Result "0-1"]
[ECO "C41"]
[WhiteElo "2439"]
[BlackElo "2586"]
[Annotator "ChessBase"]
[PlyCount "138"]
[EventDate "2021.10.12"]
[EventType "swiss"]
[EventCountry "RUS"]
[SourceTitle "playchess.com"]
[Source "ChessBase"]
[SourceQuality "1"]
[TimeControl "900+10"]

1. e4 {[%emt 0:00:05]} e5 {[%emt 0:00:00]} 2. Bc4 {[%emt 0:00:20]} Nf6 {
[%emt 0:00:23]} 3. d3 {[%emt 0:00:00]} Be7 {[%emt 0:00:06]} 4. Nc3 {[%emt 0:00:
03]} c6 {[%emt 0:00:22]} 5. Nf3 {[%emt 0:00:16]} d6 {[%emt 0:00:03]} 6. O-O {
[%emt 0:01:13]} O-O {[%emt 0:00:05]} 7. a4 {[%emt 0:01:17]} Nbd7 {[%emt 0:00:
38]} 8. d4 {[%emt 0:00:28]} Qc7 {[%emt 0:00:34]} 9. Ba2 {[%emt 0:00:14]} exd4 {
[%emt 0:00:38]} 10. Nxd4 {[%emt 0:00:02]} Nc5 {[%emt 0:00:00]} 11. Re1 {
[%emt 0:00:09]} Bg4 {[%emt 0:00:21]} 12. f3 {[%emt 0:00:05]} Bd7 {[%emt 0:00:
20]} 13. Be3 {[%emt 0:00:09]} Rfe8 {[%emt 0:00:15]} 14. Qd2 {[%emt 0:00:18]} a5
{[%emt 0:00:02]} 15. Qf2 {[%emt 0:01:25]} Na6 {[%emt 0:01:00]} 16. Rad1 {
[%emt 0:04:56]} Nb4 {[%emt 0:00:05]} 17. Bb3 {[%emt 0:00:04]} Rab8 {[%emt 0:00:
46]} 18. Bc4 {[%emt 0:02:08]} b6 {[%emt 0:00:53]} 19. Bf4 {[%emt 0:00:22]} Nh5
{[%emt 0:00:04]} 20. Be3 {[%emt 0:00:00]} Nf6 {[%emt 0:00:16]} 21. Bf4 {
[%emt 0:01:19]} Nh5 {[%emt 0:00:10]} 22. Bc1 {[%emt 0:00:04]} Rbd8 {[%emt 0:00:
51]} 23. Bb3 {[%emt 0:00:00]} Bc8 {[%emt 0:00:19]} 24. Nce2 {[%emt 0:00:32]} d5
{[%emt 0:00:25]} 25. c3 {[%emt 0:00:03]} Na6 {[%emt 0:00:09]} 26. exd5 {
[%emt 0:00:05]} cxd5 {[%emt 0:00:00]} 27. g4 {[%emt 0:00:34]} Nf6 {[%emt 0:00:
08]} 28. Bf4 {[%emt 0:00:00]} Qb7 {[%emt 0:00:24]} 29. Bc2 {[%emt 0:00:46]} Nc5
{[%emt 0:00:05]} 30. Ng3 {[%emt 0:00:24]} Ne6 {[%emt 0:00:12]} 31. Be3 {
[%emt 0:00:21]} Bc5 {[%emt 0:00:22]} 32. g5 {[%emt 0:00:58]} Nd7 {[%emt 0:00:
08]} 33. f4 {[%emt 0:00:00]} Qc7 {[%emt 0:00:00]} 34. Ngf5 {[%emt 0:01:24]}
Ndf8 {[%emt 0:01:53]} 35. Nb5 {[%emt 0:00:18]} Qb8 {[%emt 0:00:36]} 36. Nfd4 {
[%emt 0:00:21]} Nxd4 {[%emt 0:00:19]} 37. Nxd4 {[%emt 0:00:11]} Bg4 {[%emt 0:
01:17]} 38. Ra1 {[%emt 0:00:17]} Qc8 {[%emt 0:00:49]} 39. f5 {[%emt 0:00:03]}
g6 {[%emt 0:00:03]} 40. Nb5 {[%emt 0:00:22]} Rxe3 {[%emt 0:00:24]} 41. Rxe3 {
[%emt 0:00:02]} Bxe3 {[%emt 0:00:05]} 42. Qxe3 {[%emt 0:00:00]} Bxf5 {[%emt 0:
00:00]} 43. Bb3 {[%emt 0:00:29]} Be4 {[%emt 0:00:06]} 44. Qg3 {[%emt 0:00:10]}
Ne6 {[%emt 0:00:07]} 45. h4 {[%emt 0:00:10]} Nc5 {[%emt 0:01:24]} 46. Bd1 {
[%emt 0:00:13]} Qb8 {[%emt 0:00:11]} 47. Qxb8 {[%emt 0:00:10]} Rxb8 {[%emt 0:
00:00]} 48. Be2 {[%emt 0:00:10]} Kf8 {[%emt 0:00:20]} 49. Rf1 {[%emt 0:00:07]}
Nxa4 {[%emt 0:00:30]} 50. b4 {[%emt 0:00:13]} axb4 {[%emt 0:00:35]} 51. cxb4 {
[%emt 0:00:00]} Rd8 {[%emt 0:00:00]} 52. Nd4 {[%emt 0:00:03]} Kg7 {[%emt 0:00:
13]} 53. Bg4 {[%emt 0:00:13]} Nb2 {[%emt 0:00:21]} 54. Ra1 {[%emt 0:00:16]} h5
{[%emt 0:00:00]} 55. Bh3 {[%emt 0:00:00]} b5 {[%emt 0:02:16]} 56. Ra7 {[%emt 0:
00:02]} Kg8 {[%emt 0:00:02]} 57. Bf1 {[%emt 0:00:32]} Bd3 {[%emt 0:00:19]} 58.
Bg2 {[%emt 0:00:07]} Bc4 {[%emt 0:00:14]} 59. Nc6 {[%emt 0:00:14]} Rd6 {
[%emt 0:00:02]} 60. Ne5 {[%emt 0:00:11]} d4 {[%emt 0:00:05]} 61. Nf3 {[%emt 0:
00:08]} Bd5 {[%emt 0:00:17]} 62. Nd2 {[%emt 0:00:05]} d3 {[%emt 0:00:28]} 63.
Bxd5 {[%emt 0:00:10]} Rxd5 {[%emt 0:00:02]} 64. Kf2 {[%emt 0:00:10]} Nc4 {
[%emt 0:00:00]} 65. Ne4 {[%emt 0:00:00]} Rd8 {[%emt 0:00:00]} 66. Ra1 {[%emt 0:
00:12]} Kg7 {[%emt 0:00:00]} 67. Rd1 {[%emt 0:00:00]} d2 {[%emt 0:00:00]} 68.
Ke2 {[%emt 0:00:29]} Rd4 {[%emt 0:00:59]} 69. Nc3 {[%emt 0:00:03]} Rxh4 {
[%emt 0:00:03]} 0-1

[Event "RUS-ch Rapid 2021"]
[Site "Sochi"]
[Date "2021.10.12"]
[Round "4.18"]
[White "Petrov, Nikita"]
[Black "Kovalenko, Sergey"]
[Result "1-0"]
[ECO "E01"]
[WhiteElo "2539"]
[BlackElo "2214"]
[Annotator "ChessBase"]
[PlyCount "85"]
[EventDate "2021.10.12"]
[EventType "swiss"]
[EventCountry "RUS"]
[SourceTitle "playchess.com"]
[Source "ChessBase"]
[SourceQuality "1"]
[TimeControl "900+10"]

1. d4 {[%emt 0:00:05]} Nf6 {[%emt 0:00:00]} 2. c4 {[%emt 0:00:00]} e6 {[%emt 0:
00:05]} 3. Nf3 {[%emt 0:00:09]} d5 {[%emt 0:00:00]} 4. g3 {[%emt 0:00:00]} c6 {
[%emt 0:00:10]} 5. Bg2 {[%emt 0:00:16]} Bd6 {[%emt 0:00:02]} 6. Nc3 {[%emt 0:
00:18]} O-O {[%emt 0:00:06]} 7. O-O {[%emt 0:00:00]} Nbd7 {[%emt 0:00:04]} 8.
Nd2 {[%emt 0:00:05]} Re8 {[%emt 0:00:36]} 9. e4 {[%emt 0:00:08]} dxe4 {[%emt 0:
00:00]} 10. Ndxe4 {[%emt 0:00:05]} Nxe4 {[%emt 0:00:12]} 11. Nxe4 {[%emt 0:00:
01]} Be7 {[%emt 0:00:00]} 12. Bf4 {[%emt 0:00:36]} Nf8 {[%emt 0:00:00]} 13. c5
{[%emt 0:00:22]} Ng6 {[%emt 0:00:39]} 14. Bd6 {[%emt 0:00:03]} Bf8 {[%emt 0:00:
16]} 15. b4 {[%emt 0:00:51]} a5 {[%emt 0:00:30]} 16. a3 {[%emt 0:00:14]} Ne7 {
[%emt 0:00:20]} 17. Qd2 {[%emt 0:01:40]} Nf5 {[%emt 0:00:13]} 18. Bxf8 {
[%emt 0:00:05]} Rxf8 {[%emt 0:00:00]} 19. Rfd1 {[%emt 0:00:50]} axb4 {[%emt 0:
00:18]} 20. Qxb4 {[%emt 0:00:00]} Qa5 {[%emt 0:00:28]} 21. Qxa5 {[%emt 0:01:43]
} Rxa5 {[%emt 0:00:00]} 22. g4 {[%emt 0:00:03]} Ne7 {[%emt 0:00:14]} 23. Nd6 {
[%emt 0:00:05]} Rd8 {[%emt 0:00:19]} 24. a4 {[%emt 0:01:32]} Kf8 {[%emt 0:03:
17]} 25. Rdb1 {[%emt 0:01:16]} Rd7 {[%emt 0:03:26]} 26. f4 {[%emt 0:01:51]} Rc7
{[%emt 0:00:52]} 27. Kf2 {[%emt 0:00:27]} Ng6 {[%emt 0:00:34]} 28. Ke3 {
[%emt 0:00:08]} Ra7 {[%emt 0:00:41]} 29. a5 {[%emt 0:00:19]} Ke7 {[%emt 0:00:
39]} 30. Rb6 {[%emt 0:02:08]} Bd7 {[%emt 0:02:06]} 31. Be4 {[%emt 0:00:36]} f6
{[%emt 0:00:32]} 32. a6 {[%emt 0:01:21]} Rxa6 {[%emt 0:00:03]} 33. Rbxa6 {
[%emt 0:00:07]} bxa6 {[%emt 0:00:00]} 34. Rxa6 {[%emt 0:00:00]} e5 {[%emt 0:00:
25]} 35. dxe5 {[%emt 0:00:15]} fxe5 {[%emt 0:00:04]} 36. f5 {[%emt 0:00:17]}
Nf4 {[%emt 0:00:02]} 37. Ra8 {[%emt 0:00:15]} Nd5+ {[%emt 0:00:23]} 38. Kf3 {
[%emt 0:00:15]} Nf6 {[%emt 0:00:33]} 39. g5 {[%emt 0:00:33]} Ne8 {[%emt 0:00:
03]} 40. Nc4 {[%emt 0:00:18]} Rb7 {[%emt 0:00:10]} 41. Nxe5 {[%emt 0:00:15]}
Rb3+ {[%emt 0:00:07]} 42. Kf4 {[%emt 0:00:09]} Rc3 {[%emt 0:00:03]} 43. Ra7 {
[%emt 0:00:08]} 1-0

[Event "RUS-ch Rapid 2021"]
[Site "Sochi"]
[Date "2021.10.12"]
[Round "4.23"]
[White "Kezin, Roman"]
[Black "Khubukshanov, Erdem"]
[Result "1-0"]
[ECO "E06"]
[WhiteElo "2492"]
[BlackElo "2373"]
[Annotator "ChessBase"]
[PlyCount "43"]
[EventDate "2021.10.12"]
[EventType "swiss"]
[EventCountry "RUS"]
[SourceTitle "playchess.com"]
[Source "ChessBase"]
[SourceQuality "1"]
[TimeControl "900+10"]

1. d4 {[%emt 0:00:00]} d5 {[%emt 0:00:00]} 2. c4 {[%emt 0:00:05]} e6 {[%emt 0:
00:01]} 3. Nf3 {[%emt 0:00:00]} Nf6 {[%emt 0:00:07]} 4. g3 {[%emt 0:00:00]} Be7
{[%emt 0:00:00]} 5. Bg2 {[%emt 0:00:00]} O-O {[%emt 0:00:03]} 6. O-O {[%emt 0:
00:00]} c6 {[%emt 0:00:00]} 7. Qc2 {[%emt 0:00:08]} b6 {[%emt 0:00:02]} 8. Nbd2
{[%emt 0:00:07]} Bb7 {[%emt 0:00:00]} 9. e4 {[%emt 0:00:00]} Na6 {[%emt 0:00:
00]} 10. a3 {[%emt 0:00:10]} c5 {[%emt 0:00:07]} 11. exd5 {[%emt 0:00:09]} exd5
{[%emt 0:00:01]} 12. dxc5 {[%emt 0:00:10]} Nxc5 {[%emt 0:00:00]} 13. b4 {
[%emt 0:00:00]} Ne6 {[%emt 0:00:03]} 14. Rd1 {[%emt 0:00:44]} Rc8 {[%emt 0:00:
54]} 15. Bb2 {[%emt 0:00:06]} Qc7 {[%emt 0:00:56]} 16. Be5 {[%emt 0:02:50]} Qc6
{[%emt 0:00:02]} 17. Rac1 {[%emt 0:00:18]} Rfd8 {[%emt 0:01:10]} 18. Nh4 {
[%emt 0:03:24]} Ne4 {[%emt 0:01:26]} 19. Nf5 {[%emt 0:02:36]} Bg5 {[%emt 0:01:
06]} 20. f4 {[%emt 0:01:11]} g6 {[%emt 0:00:14]} 21. Nxe4 {[%emt 0:00:16]} dxe4
{[%emt 0:00:27]} 22. Nd6 {[%emt 0:00:00]} 1-0

[Event "RUS-ch Rapid 2021"]
[Site "Sochi"]
[Date "2021.10.12"]
[Round "4.24"]
[White "Vlassow, Valentin"]
[Black "Iljiushenok, Ilia"]
[Result "0-1"]
[ECO "B51"]
[WhiteElo "2238"]
[BlackElo "2554"]
[Annotator "ChessBase"]
[PlyCount "106"]
[EventDate "2021.10.12"]
[EventType "swiss"]
[EventCountry "RUS"]
[SourceTitle "playchess.com"]
[Source "ChessBase"]
[SourceQuality "1"]
[TimeControl "900+10"]

1. e4 {[%emt 0:00:00]} c5 {[%emt 0:00:06]} 2. Nf3 {[%emt 0:00:01]} d6 {[%emt 0:
00:00]} 3. Bb5+ {[%emt 0:00:06]} Nd7 {[%emt 0:00:00]} 4. d4 {[%emt 0:00:02]}
cxd4 {[%emt 0:00:01]} 5. Qxd4 {[%emt 0:00:00]} a6 {[%emt 0:00:10]} 6. Bxd7+ {
[%emt 0:00:04]} Bxd7 {[%emt 0:00:00]} 7. Nc3 {[%emt 0:00:22]} h6 {[%emt 0:00:
58]} 8. Be3 {[%emt 0:01:28]} e6 {[%emt 0:01:47]} 9. O-O-O {[%emt 0:01:10]} Bc6
{[%emt 0:00:15]} 10. Qb6 {[%emt 0:00:34]} Nf6 {[%emt 0:00:23]} 11. Rhe1 {
[%emt 0:01:02]} Be7 {[%emt 0:00:31]} 12. Qxd8+ {[%emt 0:05:08]} Rxd8 {[%emt 0:
00:00]} 13. e5 {[%emt 0:00:54]} Ng4 {[%emt 0:01:43]} 14. Bb6 {[%emt 0:00:23]}
Rd7 {[%emt 0:00:00]} 15. exd6 {[%emt 0:00:39]} Bxd6 {[%emt 0:00:14]} 16. h3 {
[%emt 0:01:18]} Nf6 {[%emt 0:01:22]} 17. Rd4 {[%emt 0:01:22]} Ke7 {[%emt 0:01:
28]} 18. Red1 {[%emt 0:00:29]} Bxf3 {[%emt 0:00:06]} 19. gxf3 {[%emt 0:00:09]}
Rc8 {[%emt 0:00:02]} 20. Ne4 {[%emt 0:00:31]} Nd5 {[%emt 0:03:00]} 21. Nxd6 {
[%emt 0:01:06]} Rxd6 {[%emt 0:00:01]} 22. Ba5 {[%emt 0:00:28]} Rdc6 {[%emt 0:
00:01]} 23. c3 {[%emt 0:00:34]} Rc4 {[%emt 0:00:33]} 24. a3 {[%emt 0:00:32]}
Kf6 {[%emt 0:02:55]} 25. Bd8+ {[%emt 0:00:18]} Kf5 {[%emt 0:00:15]} 26. Bh4 {
[%emt 0:00:00]} g5 {[%emt 0:00:22]} 27. Bg3 {[%emt 0:00:02]} h5 {[%emt 0:00:14]
} 28. h4 {[%emt 0:00:06]} f6 {[%emt 0:00:23]} 29. Kc2 {[%emt 0:00:15]} b5 {
[%emt 0:00:16]} 30. Kb3 {[%emt 0:00:00]} R8c5 {[%emt 0:00:53]} 31. Bd6 {
[%emt 0:00:04]} Rc6 {[%emt 0:00:02]} 32. Bg3 {[%emt 0:00:10]} a5 {[%emt 0:00:
12]} 33. R1d2 {[%emt 0:00:24]} a4+ {[%emt 0:00:02]} 34. Kc2 {[%emt 0:00:09]}
Rxd4 {[%emt 0:00:45]} 35. Rxd4 {[%emt 0:00:00]} Rc4 {[%emt 0:00:00]} 36. Kd3 {
[%emt 0:00:12]} Nf4+ {[%emt 0:00:23]} 37. Ke3 {[%emt 0:00:30]} Ng2+ {[%emt 0:
00:31]} 38. Kd3 {[%emt 0:00:04]} gxh4 {[%emt 0:00:25]} 39. Bh2 {[%emt 0:00:39]}
Ne1+ {[%emt 0:00:12]} 40. Ke2 {[%emt 0:00:11]} Rxd4 {[%emt 0:00:00]} 41. cxd4 {
[%emt 0:00:01]} Ng2 {[%emt 0:00:10]} 42. Kd3 {[%emt 0:00:17]} Nf4+ {[%emt 0:00:
00]} 43. Ke3 {[%emt 0:00:00]} Nd5+ {[%emt 0:00:00]} 44. Kd3 {[%emt 0:00:06]} h3
{[%emt 0:00:00]} 45. Bg3 {[%emt 0:00:01]} h4 {[%emt 0:00:03]} 46. Bh2 {[%emt 0:
00:00]} Nb6 {[%emt 0:01:01]} 47. Kc3 {[%emt 0:00:10]} Nc4 {[%emt 0:00:00]} 48.
Kc2 {[%emt 0:00:09]} e5 {[%emt 0:00:12]} 49. Kc3 {[%emt 0:00:20]} exd4+ {
[%emt 0:00:03]} 50. Kxd4 {[%emt 0:00:03]} Nxb2 {[%emt 0:00:06]} 51. Kc5 {
[%emt 0:00:01]} Nc4 {[%emt 0:00:14]} 52. Kxb5 {[%emt 0:00:11]} Nxa3+ {[%emt 0:
00:03]} 53. Kxa4 {[%emt 0:00:00]} Nc4 {[%emt 0:00:01]} 0-1